[Event "34th GER-ch Seniors-65 2022"]
[Site "Magdeburg"]
[Date "2022.08.18"]
[Round "7.10"]
[White "Ehlert, Horst"]
[Black "Dekan, Hans"]
[Result "0-1"]
[ECO "A25"]
[WhiteElo "2011"]
[BlackElo "2104"]
[Annotator "TA"]
[PlyCount "117"]
[EventDate "2022.08.12"]
[EventType "swiss"]
[EventCountry "GER"]
[SourceTitle "playchess.com"]
[Source "ChessBase"]
[SourceQuality "1"]
[TimeControl "40/5400+30:1800+30"]

{[%evp 11,117,27,25,25,27,10,8,12,23,18,42,21,31,40,68,31,47,28,37,2,0,2,41,41,65,-51,-47,-52,0,-56,-51,-77,-35,-12,-37,-116,-103,-111,-73,-72,92,-251,-256,-257,-95,-102,-77,-64,-47,-33,-52,-364,-352,-395,-360,-402,-386,-368,-340,-348,-235,-254,-233,-194,-141,-140,-133,-171,-189,-262,-256,-231,-203,-357,-353,-368,-383,-367,-332,-343,-260,-234,-240,-378,-225,-494,-485,-768,-927,-789,-705,-1975,-1777,-12826,-9014,-12827,-7800,-12829,-12803,-12826,-12823,-12832,-12832,-12837,-11078,-2756,-3733,-1519]} 1. c4 {[%emt 0:01:55]} e5 {[%emt 0:00:20]} 2. g3 {[%emt 0:00:10]} Nf6 {[%emt 0:00:27]} 3. Bg2 {[%emt 0:00:20]} Bc5 {[%emt 0:00:24]} 4. Nc3 {[%emt 0:00:18]} Nc6 {[%emt 1:31:19]} 5. e3 {[%emt 1:30:17]} O-O {[%emt 0:00:00]} 6. a3 {[%emt 0:00:00]} a5 {[%emt 0:00:00]} 7. Nge2 {[%emt 0:00:00] A25: English Opening vs King's Indian with ...Nc6 but without early d3.} Re8 {[%emt 0:00:00]} 8. d3 {[%emt 0:00:00]} d6 {[%emt 0:00:00]} 9. O-O {[%emt 0:00:00] The position is equal.} Bg4 {[%emt 0:00:00]} 10. h3 {[%emt 0:00:00]} Bf5 {[%emt 0:00:00] [#]} 11. Qc2 $146 {[%emt 0:00:00]} ({Predecessor:} 11. b3 h6 12. Bb2 e4 13. d4 Ba7 14. g4 Bh7 15. Ng3 Nb8 16. b4 Nbd7 17. Qb3 {½-½ (37) Hoeffer,D (2265)-Pezerovic,E (2429) Bad Wiessee 2014}) 11... Qc8 {[%emt 0:00:00]} 12. Kh2 {[%emt 0:00:00]} Ne7 {[%emt 0:00:00]} 13. Bd2 {[%emt 0:00:00]} (13. e4 $5 {[%cal Re4f5]} Bg6 14. Na4 $11) 13... c6 {[%emt 0:00:00]} 14. Rac1 {[%emt 0:00:00]} (14. f4 {looks sharper.} exf4 15. Nxf4 Ng6 16. e4) 14... Ba7 {[%emt 0:00:00]} 15. b4 {[%emt 0:00:00]} axb4 {[%emt 0:00:00]} 16. axb4 {[%emt 0:00:00]} h5 {[%emt 0:00:00]} 17. e4 {[%emt 0:00:00]} Bd7 {[%emt 0:00:00]} 18. Be3 {[%emt 0:00:00]} (18. f4 $1 $14) 18... Bxe3 $1 $15 {[%emt 0:00:00]} 19. fxe3 {[%emt 0:00:00]} h4 {[%emt 0:00:00]} ({Better is} 19... Qc7 $15) 20. Rf3 {[%emt 0:00:00]} (20. gxh4 $11 Ng6 21. Ng3) 20... Ng6 {[%emt 0:00:00]} 21. Rcf1 {[%emt 0:00:00]} Rf8 {[%emt 0:00:00]} 22. Rxf6 {[%emt 0:00:00]} gxf6 {[%emt 0:00:00]} 23. Rxf6 {[%emt 0:00:00]} (23. gxh4 $1 $15 Nxh4 24. Ng3) 23... Kg7 {[%emt 0:00:00]} 24. Rxd6 {[%emt 0:00:00]} Rh8 {[%emt 0:00:00]} 25. g4 {[%emt 0:00:00]} Bxg4 $2 {[%emt 0:00:00]} 26. Ng1 $2 {[%emt 0:00:00][%mdl 8192]} (26. hxg4 $16 {is forced if you want to stay better. aiming for Ng1.} Qxg4 27. Qc1) 26... Be6 $19 {[%emt 0:00:00]} 27. c5 {[%emt 0:00:13] [#]} Qc7 $2 {[%emt 0:00:00]} (27... Rd8 $1 $19 {[%cal Rd8d6] and Black stays clearly on top. ...Rxd6 is the strong threat.} 28. Rxd8 Qxd8) 28. d4 $17 {[%emt 0:00:25]} Rhd8 $36 {[%emt 0:00:00][%mdl 2048] Threatens to win with ...exd4. White is under strong pressure.} 29. d5 {[%emt 0:00:17]} Bc8 {[%emt 0:00:00]} (29... Rxd6 30. cxd6 Qxd6 31. dxe6 $11) 30. Rxd8 {[%emt 0:00:28]} Qxd8 {[%emt 0:00:00]} 31. d6 $2 {[%emt 0:00:05][%mdl 8192]} (31. Nf3 $15) 31... Qg5 $19 {[%emt 0:00:00]} 32. Qd2 {[%emt 0:00:46]} Bd7 {[%emt 0:00:00]} 33. Nce2 {[%emt 0:00:49]} Ra3 {[%emt 0:00:00]} 34. Nc3 {[%emt 0:02:00]} Qg3+ {[%emt 0:00:00]} (34... Ra1 $2 35. Nge2 $19) 35. Kh1 {[%emt 0:00:06]} Nf8 {[%emt 0:00:00]} 36. Qb2 {[%emt 0:00:45]} Ra8 {[%emt 0:00:00]} 37. Nce2 {[%emt 0:00:22]} Qg5 {[%emt 0:00:00]} (37... Qxe3 $19 38. Qxe5+ Kg8) 38. Nf3 $17 {[%emt 0:00:18] [#]} Qf6 {[%emt 0:00:00]} ({Don't play} 38... Qxe3 $6 39. Qxe5+ Kg8 40. Nf4 $11) 39. Kh2 {[%emt 0:02:19]} ({Wrong is} 39. Nxe5 $2 Ng6 40. Qd4 Qxe5 $19) 39... Ng6 {[%emt 0:00:00][%cal Od7h3]} 40. Neg1 {[%emt 0:01:31]} (40. Nc1 $142) 40... Qe6 $19 {[%emt 0:00:00]} 41. Qc3 {[%emt 0:35:10]} f6 {[%emt 0:30:08]} ({Inferior is} 41... Ra2 42. Nd2) 42. Qe1 $2 {[%emt 0:00:12]} (42. Ne1) 42... Qb3 {[%emt 0:03:05] Hoping for ...Ra2.} 43. Nxh4 {[%emt 0:00:00]} Nxh4 {[%emt 0:00:00]} 44. Qxh4 {[%emt 0:00:00]} Qxe3 {[%emt 0:00:00] Strongly threatening ...Ra2.} 45. Nf3 {[%emt 0:00:00]} Qf4+ {[%emt 0:00:00]} 46. Qxf4 {[%emt 0:00:00]} exf4 {[%emt 0:00:00][%mdl 4096] Endgame KRB-KBN} 47. e5 {[%emt 0:00:00]} (47. Kg1 $142) 47... Re8 {[%emt 0:00:00]} (47... Ra4 $142 48. h4 Rxb4) 48. h4 $2 {[%emt 0:05:44]} (48. exf6+ {was forced.} Kxf6 49. Nd4) 48... fxe5 {[%emt 0:00:00][%cal Bf6e5,Be5e4][%mdl 32] Black is clearly winning.} 49. Bh3 {[%emt 0:00:00]} (49. Nd2 $142 Rh8 50. Bf3) 49... Bxh3 {[%emt 0:00:00]} 50. Kxh3 {[%emt 0:00:00] KR-KN} Kf6 {[%emt 0:00:00]} 51. Kg4 {[%emt 0:00:00]} e4 {[%emt 0:00:00]} 52. Ng5 {[%emt 0:00:00]} f3 {[%emt 0:00:00]} 53. d7 {[%emt 0:00:00]} Rg8 {[%emt 0:00:00]} 54. Kf4 {[%emt 0:00:00]} Ke7 {[%emt 0:00:00] ( -> ...f2)} 55. Nxe4 {[%emt 0:00:00]} Rf8+ {[%emt 0:00:00]} 56. Ke3 {[%emt 0:00:00]} Kxd7 {[%emt 0:00:00]} 57. Nf2 {[%emt 0:00:00]} Ke6 {[%emt 0:00:00]} 58. h5 {[%emt 0:00:21]} Kd5 {[%emt 0:00:00]} 59. Ng4 {[%emt 0:02:30] Weighted Error Value: White=0.84/Black=0.32} 0-1

[Event "34th GER-ch Seniors-65 2022"]
[Site "Magdeburg"]
[Date "2022.08.18"]
[Round "7.11"]
[White "Syre, Christian"]
[Black "Vasiljev, Jurij"]
[Result "1/2-1/2"]
[ECO "E54"]
[WhiteElo "2243"]
[BlackElo "1999"]
[Annotator "TA"]
[PlyCount "53"]
[EventDate "2022.08.12"]
[EventType "swiss"]
[EventCountry "GER"]
[SourceTitle "playchess.com"]
[Source "ChessBase"]
[SourceQuality "1"]
[TimeControl "40/5400+30:1800+30"]

{[%evp 14,53,0,0,0,-2,0,-5,31,34,44,39,181,168,161,114,116,0,3,0,8,0,0,0,0,0,0,-5,-3,-8,-8,-19,-16,-14,-15,-21,-4,-8,-7,-12,0,-12]} 1. c4 {[%emt 0:00:18]} c6 {[%emt 0:00:35][%cal Bc7c6,Bc6d5][%mdl 32]} 2. e4 {[%emt 0:00:37]} d5 {[%emt 0:00:11]} 3. exd5 {[%emt 0:00:33]} cxd5 {[%emt 0:00:10]} 4. d4 {[%emt 0:00:03]} Nf6 {[%emt 0:00:26]} 5. Nc3 {[%emt 0:00:05]} e6 {[%emt 0:00:27]} 6. Nf3 {[%emt 0:00:05]} Nc6 {[%emt 0:00:53]} 7. Bd3 {[%emt 0:03:37]} dxc4 8. Bxc4 {[%emt 0:00:02]} a6 {[%emt 0:03:06] E54: Nimzo-Indian: Rubinstein: Main Line: 7...dxc4 8 Bxc4.} 9. O-O $1 {[%emt 0:02:18]} b5 {[%emt 0:01:05] [#]} 10. d5 $146 {[%emt 0:13:30]} ({Predecessor:} 10. Bd3 Be7 11. a4 b4 12. Ne4 Bb7 13. Be3 Qd5 14. Nc5 Bxc5 15. dxc5 Rd8 16. Be2 Qf5 17. Qc1 O-O 18. Qb1 Qxb1 19. Rfxb1 {½-½ (33) Molema,W-De,G (2352) ICCF email 2020}) 10... exd5 {[%emt 0:00:30]} (10... Nxd5 $2 11. Bxd5 exd5 12. Re1+ (12. Qxd5 Qxd5 13. Nxd5 Bd6 $14) (12. Nxd5 Be6 $14) 12... Be7 13. Qxd5 $16) (10... Nb4 $5 {[%cal Rb5c4]} 11. Bb3 (11. dxe6 Qxd1 12. exf7+ Ke7 $17) 11... Nbxd5 $11) 11. Bxd5 {[%emt 0:00:05]} Nxd5 {[%emt 0:00:17]} 12. Qxd5 {[%emt 0:00:54]} Bb7 {[%emt 0:03:04]} (12... Qxd5 $14 13. Nxd5 Bd6) 13. Re1+ {[%emt 0:01:48]} Be7 {[%emt 0:00:22]} 14. Bg5 {[%emt 0:00:07]} (14. Nd4 $18 Na5 15. Qxd8+ Rxd8 16. Nf5) 14... f6 $16 {[%emt 0:02:52]} 15. Bf4 {[%emt 0:33:19] 0x0.00144ecafeb0dp-1022s more active pieces. The black rooks are badly placed.} (15. Nd4 $16 Qd7 16. Bxf6) 15... Qxd5 $11 {[%emt 0:00:48] The position is equal.} 16. Nxd5 {[%emt 0:03:19]} Kf7 {[%emt 0:00:22]} 17. Rac1 {[%emt 0:06:41]} Rae8 {[%emt 0:03:58]} 18. Nxe7 {[%emt 0:04:09]} Rxe7 {[%emt 0:00:45]} 19. Rxe7+ {[%emt 0:00:03]} Kxe7 {[%emt 0:00:24]} 20. Kf1 {[%emt 0:03:22]} Rc8 {[%emt 0:01:19]} 21. Re1+ {[%emt 0:06:01]} Kf7 {[%emt 0:00:16]} 22. Bd6 {[%emt 0:01:03]} Rd8 {[%emt 0:00:47]} 23. Bc5 {[%emt 0:00:49]} Rd7 {[%emt 0:04:18]} 24. Ke2 {[%emt 0:04:28]} Rd5 {[%emt 0:04:57]} 25. Rc1 {[%emt 0:02:15]} a5 {[%emt 0:06:02]} 26. Bb6 {[%emt 0:02:01]} Ke6 {[%emt 0:04:21]} 27. Rd1 {[%emt 0:12:28] Weighted Error Value: White=0.20 (precise) /Black=0.15 (very precise)} 1/2-1/2

[Event "34th GER-ch Seniors-65 2022"]
[Site "Magdeburg"]
[Date "2022.08.19"]
[Round "8.1"]
[White "Buchal, Stephan"]
[Black "Boidman, Yuri"]
[Result "1/2-1/2"]
[ECO "A11"]
[WhiteElo "2230"]
[BlackElo "2286"]
[Annotator "TA"]
[PlyCount "138"]
[EventDate "2022.08.12"]
[EventType "swiss"]
[EventCountry "GER"]
[SourceTitle "playchess.com"]
[Source "ChessBase"]
[SourceQuality "1"]
[TimeControl "40/5400+30:1800+30"]

{[%evp 20,138,40,6,20,0,35,36,50,43,30,29,40,7,128,132,125,117,122,113,127,81,97,87,90,93,93,80,93,79,100,77,77,77,77,77,77,13,8,-20,84,75,98,79,70,-48,-81,-73,-44,-40,-48,-75,-53,-106,-72,-66,74,74,181,-26,-35,-207,0,0,0,0,0,0,0,0,0,0,0,0,0,0,0,0,0,-36,-40,-55,0,0,0,0,0,0,0,0,0,0,0,0,0,0,0,0,0,0,0,0,0,0,0,0,0,0,0,0,0,0,0,0,0,0,0,0,0,0,0]} 1. c4 {[%emt 0:00:07]} c6 {[%emt 0:00:12]} 2. g3 {[%emt 0:00:13]} d5 {[%emt 0:00:35]} 3. Nf3 {[%emt 0:00:19]} Nf6 {[%emt 0:00:10]} 4. Bg2 {[%emt 0:00:12]} Bf5 {[%emt 0:00:27]} 5. O-O {[%emt 0:00:44]} e6 {[%emt 0:00:15]} 6. cxd5 {[%emt 0:00:40]} cxd5 {[%emt 0:00:20]} 7. Qb3 {[%emt 0:00:41]} Qb6 {[%emt 0:00:13]} 8. Qxb6 {[%emt 0:00:23]} axb6 {[%emt 0:00:07]} 9. d3 {[%emt 0:00:18]} Nc6 {[%emt 0:01:58]} 10. Nc3 {[%emt 0:00:41]} Bc5 {[%emt 0:01:26]} 11. Bf4 {[%emt 0:02:54]} O-O {[%emt 0:02:48] A11: English Opening: 1...c6.} 12. Nh4 {[%emt 0:03:48]} Bg4 {[%emt 0:00:49]} (12... d4 $5 {[%cal Rd4c3]} 13. Nb5 Bg4 $11) 13. h3 $1 {[%emt 0:01:05]} Bh5 {[%emt 0:00:30] White is slightly better.} 14. g4 {[%emt 0:00:13]} Bg6 {[%emt 0:00:37]} 15. Rfc1 {[%emt 0:03:45] [#]} Rfc8 $146 {[%emt 0:08:58]} ({Predecessor:} 15... Ra6 16. a3 Rfa8 17. Rab1 Nd4 18. Nxg6 hxg6 19. e3 Nb3 20. Rc2 Rc8 21. Ne2 Re8 {1-0 (43) Gourlay,I (2363)-Broom,M (2189) Birmingham 2006}) 16. Kf1 {[%emt 0:08:59]} d4 {[%emt 0:13:57]} (16... Ne8 $11) 17. Nb5 $16 {[%emt 0:13:40]} e5 {[%emt 0:05:24]} 18. Nxg6 {[%emt 0:02:00]} hxg6 {[%emt 0:00:32]} 19. Bd2 {[%emt 0:16:43]} Rd8 {[%emt 0:07:42]} 20. a3 {[%emt 0:08:33]} (20. a4 $142) 20... Rac8 {[%emt 0:01:22]} 21. Rc2 {[%emt 0:07:01]} Nd5 {[%emt 0:04:19]} 22. Rac1 {[%emt 0:01:36]} Rb8 {[%emt 0:03:39]} 23. Be4 {[%emt 0:04:50]} Bf8 {[%emt 0:05:29]} 24. Kg2 {[%emt 0:02:05]} Rd7 {[%emt 0:08:01]} 25. g5 {[%emt 0:02:01]} f5 {[%emt 0:02:09]} 26. Bf3 {[%emt 0:03:16]} ({Reject} 26. gxf6 gxf6 27. h4 f5 $11) 26... Be7 {[%emt 0:03:52]} 27. h4 {[%emt 0:02:21]} Kf7 {[%emt 0:00:52]} 28. e4 {[%emt 0:05:34]} (28. b4 $16) 28... dxe3 $1 $11 {[%emt 0:02:33]} 29. fxe3 {[%emt 0:00:12]} Bc5 {[%emt 0:05:37]} (29... Rh8 $11 30. e4 Nf4+ 31. Bxf4 exf4) 30. Re1 $1 $16 {[%emt 0:03:28]} Rh8 {[%emt 0:01:22]} 31. d4 {[%emt 0:01:02]} Be7 {[%emt 0:05:16]} (31... exd4 32. exd4 Nxd4 33. Nxd4 Bxd4 34. Bxd5+ Rxd5 35. Rc7+ Kg8 36. h5 Bxb2 37. Bb4) 32. Bxd5+ {[%emt 0:01:03]} (32. dxe5 $1 $14 Nxe5 33. e4 fxe4 34. Rxe4 Nxf3 35. Kxf3) 32... Rxd5 $15 {[%emt 0:00:02]} 33. Nc3 {[%emt 0:00:05]} Rd7 {[%emt 0:01:19]} 34. d5 {[%emt 0:01:09]} Na5 {[%emt 0:00:12]} 35. Kg3 {[%emt 0:01:24]} e4 {[%emt 0:00:59]} 36. Rd1 {[%emt 0:03:08]} ({Better is} 36. Re2 $15) 36... Bd6+ {[%emt 0:00:26]} 37. Kh3 {[%emt 0:00:18]} Rdd8 {[%emt 0:01:35]} (37... Be5 $15 {stays ahead.} 38. Be1 Nc4) 38. Be1 $1 $16 {[%emt 0:00:57] And now Nb5 would win.} Be7 {[%emt 0:01:23] [#]} (38... Nb3 $16 {might work better.}) 39. Kg2 $2 {[%emt 0:01:51]} (39. Nb5 $1 $18) 39... Nc4 $11 {[%emt 0:00:28]} 40. Bf2 {[%emt 0:00:26] [#]} (40. Re2 $15) 40... Ne5 $2 {[%emt 0:01:42]} (40... Rxh4 $1 $19 {[%mdl 512]} 41. Nb5 (41. Ne2 Rg4+) 41... Rg4+ 42. Kf1 Nd6) 41. Bg3 {[%emt 0:10:05]} Ng4 {[%emt 0:01:59]} 42. Re2 {[%emt 0:03:23] Hoping for d6.} Bc5 {[%emt 0:00:12]} 43. Bf4 {[%emt 0:06:25]} Rxh4 {[%emt 0:01:49] ...Rdh8 is the strong threat.} 44. b4 {[%emt 0:00:37]} Bd6 {[%emt 0:02:26]} 45. Bxd6 {[%emt 0:01:30]} Rxd6 {[%emt 0:00:05]} 46. Kg3 {[%emt 0:02:43] Against Rh2} Rh5 {[%emt 0:01:13] aiming for ...Ne5.} 47. Nxe4 {[%emt 0:01:22]} Rd7 {[%emt 0:00:46] Strongly threatening ...Ne5.} 48. Kf4 {[%emt 0:01:04] Against Ne5} Nf6 {[%emt 0:02:50]} 49. Nxf6 {[%emt 0:05:27] Active counter play!} gxf6 {[%emt 0:00:12]} 50. gxf6 {[%emt 0:00:38][%mdl 4096] Endgame KRR-KRR} Rh4+ {[%emt 0:02:16]} (50... Kxf6 $15 51. e4 fxe4) 51. Kf3 {[%emt 0:01:05] The position is equal.} Re4 {[%emt 0:00:40]} 52. Rc2 {[%emt 0:01:48]} Kxf6 {[%emt 0:01:13]} 53. Rc8 {[%emt 0:00:07]} Re5 {[%emt 0:00:27]} 54. d6 {[%emt 0:00:46]} Re6 {[%emt 0:00:38]} 55. Rc7 {[%emt 0:00:38]} Rdxd6 {[%emt 0:00:35]} 56. Rxd6 {[%emt 0:00:06]} Rxd6 {[%emt 0:00:08]} 57. Rxb7 {[%emt 0:00:03] KR-KR} g5 {[%emt 0:00:20]} 58. Rb8 {[%emt 0:00:34]} Re6 {[%emt 0:00:37]} 59. a4 {[%emt 0:00:13]} g4+ {[%emt 0:00:13]} 60. Kf2 {[%emt 0:00:09]} Rc6 {[%emt 0:01:15]} 61. a5 {[%emt 0:01:15]} bxa5 {[%emt 0:00:10]} 62. bxa5 {[%emt 0:00:01] Rb6 would kill now.} Rc2+ {[%emt 0:00:34]} 63. Kg3 {[%emt 0:00:49]} Rc3 {[%emt 0:00:38]} 64. Kf2 {[%emt 0:01:17]} Rc2+ {[%emt 0:05:03]} 65. Kg3 {[%emt 0:00:08]} Re2 {[%emt 0:01:01]} 66. Re8 {[%emt 0:00:47]} Kf7 {[%emt 0:00:52]} 67. Re5 {[%emt 0:00:07]} Kg6 {[%emt 0:00:33]} (67... Kf6 $5 68. Re8 Ra2 $11) 68. Re8 {[%emt 0:00:37]} Kf7 {[%emt 0:07:19]} 69. Re5 {[%emt 0:00:03]} Kf6 {[%emt 0:00:44] Weighted Error Value: White=0.25 (precise) /Black=0.29 (precise)} 1/2-1/2

[Event "34th GER-ch Seniors-65 2022"]
[Site "Magdeburg"]
[Date "2022.08.19"]
[Round "8.2"]
[White "Polster, Wolfgang"]
[Black "Klundt, Klaus"]
[Result "1/2-1/2"]
[ECO "B49"]
[WhiteElo "2237"]
[BlackElo "2288"]
[Annotator "TA"]
[PlyCount "79"]
[EventDate "2022.08.12"]
[EventType "swiss"]
[EventCountry "GER"]
[SourceTitle "playchess.com"]
[Source "ChessBase"]
[SourceQuality "1"]
[TimeControl "40/5400+30:1800+30"]

{[%evp 27,79,18,40,12,28,1,35,0,0,-24,-27,-33,-29,-47,-33,-31,-28,-31,-30,-118,-112,-173,-170,-177,-46,-53,-45,-75,-55,-58,-59,-62,-29,-29,-29,-27,-29,-29,-29,-29,-30,-30,-30,-107,-30,-30,-30,-30,-29,-25,0,-12,0,0]} 1. e4 {[%emt 1:31:00]} c5 {[%emt 1:31:00]} 2. Nf3 {[%emt 0:00:30]} e6 {[%emt 0:00:30]} 3. d4 {[%emt 0:00:30]} cxd4 {[%emt 0:00:30]} 4. Nxd4 {[%emt 0:00:30]} Nc6 {[%emt 0:00:30]} 5. Nc3 {[%emt 0:00:30]} Qc7 {[%emt 0:00:30]} 6. Be2 {[%emt 0:00:30]} a6 {[%emt 0:00:30]} 7. O-O {[%emt 0:00:30]} Nf6 {[%emt 0:00:30]} 8. Be3 {[%emt 0:00:30]} Bb4 {[%emt 0:00:30]} 9. Na4 {[%emt 0:00:30]} Be7 {[%emt 0:00:30]} 10. Nxc6 {[%emt 0:00:30]} bxc6 {[%emt 0:00:30]} 11. Nb6 {[%emt 0:00:30]} Rb8 {[%emt 0:00:30]} 12. Nxc8 {[%emt 0:00:30]} Qxc8 {[%emt 0:00:30]} 13. e5 {[%emt 0:00:30]} Nd5 {[%emt 0:00:30]} 14. Bc1 {[%emt 0:00:00]} Bc5 {[%emt 0:00:00]} 15. Qd3 {[%emt 0:00:00] B49: Sicilian: Taimanov: 5 Nc3 Qc7 6 Be3 a6 7 Be2.} (15. c4 $5 {[%cal Rc4d5]} Ne7 16. b3 $14) 15... Qc7 {[%emt 0:00:00]} 16. Qe4 {[%emt 0:00:00] [#]} d6 $146 {[%emt 0:00:00]} ({Predecessor:} 16... a5 17. a3 O-O 18. Bd3 f5 19. Qc4 Qa7 20. c3 Ne7 21. Bc2 Ng6 22. Qe2 a4 {1-0 (69) Corrales Jimenez,F (2586)-Quesada Perez,Y (2590) Las Tunas 2009}) 17. Qg4 {[%emt 0:00:00] White is slightly better.} O-O {[%emt 0:00:00]} 18. c4 {[%emt 0:00:00]} Ne7 {[%emt 0:00:00][%cal Bd5e7,Be7f5,Bf5d4][%mdl 32]} 19. exd6 {[%emt 0:00:00]} (19. Bh6 Nf5 20. Bg5 Rxb2 21. exd6 Qxd6 $17) 19... Bxd6 {[%emt 0:00:00]} 20. g3 {[%emt 0:00:00]} Be5 {[%emt 0:00:00]} 21. Rb1 {[%emt 0:00:00]} c5 {[%emt 0:00:00]} 22. Bf3 {[%emt 0:00:00]} Nf5 {[%emt 0:00:00]} 23. Re1 {[%emt 0:00:00]} (23. Qe4 $11) 23... Nd4 $17 {[%emt 0:00:00] Hoping for ...f5.} 24. Bd1 {[%emt 0:00:00]} (24. Qe4 $17 {might work better.}) 24... f5 $19 {[%emt 0:00:00]} 25. Qh3 {[%emt 0:00:00] [#]} Bf6 {[%emt 0:00:00]} ({Black should play} 25... Qa5 $1 $19 {[%cal Ra5e1]} 26. Qf1 (26. Rxe5 $2 Qxa2 27. Qf1 Qxb1 $19) 26... Qxa2) 26. Bd2 $15 {[%emt 0:00:00]} e5 {[%emt 0:00:00]} 27. f3 {[%emt 0:00:00] Against e4} Rbe8 {[%emt 0:00:00]} 28. Qg2 {[%emt 0:00:00]} Qc6 {[%emt 0:00:00]} 29. Kh1 {[%emt 0:00:00]} Re6 {[%emt 0:00:00]} 30. b4 {[%emt 0:00:00]} cxb4 {[%emt 0:00:00]} 31. Bxb4 {[%emt 0:00:00]} Rb8 {[%emt 0:00:00] White must now prevent ...a5.} ({Don't take} 31... Qxc4 32. Bxf8 (32. Bb3 Nxb3 33. Bxf8 Nd4 $11) 32... Kxf8 33. g4 $16 (33. Bb3 Nxb3 34. Rxb3 h5 $16)) 32. Rb2 $1 {[%emt 0:00:00]} e4 {[%emt 0:00:00]} 33. fxe4 {[%emt 0:00:00]} Rxe4 {[%emt 0:00:00]} (33... Qxc4 {is more complex.} 34. Bc3 Rxb2 35. Bxb2 Rxe4 36. Rxe4 fxe4 37. Qh3 e3) 34. Rxe4 {[%emt 0:00:00]} fxe4 {[%emt 0:00:00]} 35. Ba3 {[%emt 0:00:00]} (35. Bc3 $11 {remains equal.} Rxb2 36. Bxb2) 35... Rxb2 {[%emt 0:00:00]} (35... Rd8 $17 {aiming for ...Nf3.} 36. Rb1 Qxc4) 36. Bxb2 $11 {[%emt 0:00:00]} Qxc4 {[%emt 0:00:00] Strongly threatening ...Qd3.} 37. Bxd4 {[%emt 0:00:00][%mdl 64] Remove Defender} Qxd4 {[%emt 0:00:00]} 38. Bb3+ {[%emt 0:00:00]} Kf8 {[%emt 0:00:00]} 39. Qc2 {[%emt 0:00:00]} Bd8 {[%emt 0:02:32]} 40. Kg2 {[%emt 0:00:57] Weighted Error Value: White=0.20 (precise) /Black=0.17 (very precise)} 1/2-1/2